[Event "*** Titled Tuesday Blitz"]
[Site "Chess.com"]
[Date "2018.09.04"]
[Round "5"]
[White "champ2005"]
[Black "Alopekos"]
[Result "1/2-1/2"]
[WhiteElo "2737"]
[BlackElo "2442"]
[TimeControl "180+2"]
[EndTime "14:43:13 PDT"]
[Termination "Game drawn by repetition"]

1. e4 {[%clk 0:03:01.5]} 1... e5 {[%clk 0:03:00.3]} 2. Nf3 {[%clk 0:03:02.1]}
2... Nc6 {[%clk 0:03:01.4]} 3. Bc4 {[%clk 0:03:02.1]} 3... Nf6 {[%clk 0:03:02]}
4. Ng5 {[%clk 0:03:01.7]} 4... d5 {[%clk 0:03:02.6]} 5. exd5 {[%clk 0:03:02.8]}
5... Na5 {[%clk 0:03:04.1]} 6. Bb5+ {[%clk 0:03:04.1]} 6... c6 {[%clk
0:03:05.6]} 7. dxc6 {[%clk 0:03:05.2]} 7... bxc6 {[%clk 0:03:07.5]} 8. Bd3
{[%clk 0:03:06.6]} 8... Be7 {[%clk 0:02:20.9]} 9. Nc3 {[%clk 0:02:50.8]} 9...
O-O {[%clk 0:02:19.4]} 10. O-O {[%clk 0:02:50.4]} 10... h6 {[%clk 0:02:18.4]}
11. Nf3 {[%clk 0:02:45.8]} 11... Bd6 {[%clk 0:01:55.8]} 12. Re1 {[%clk
0:02:46.2]} 12... Re8 {[%clk 0:01:56.3]} 13. b3 {[%clk 0:02:40.6]} 13... c5
{[%clk 0:01:56.1]} 14. Bb2 {[%clk 0:02:40.3]} 14... Rb8 {[%clk 0:01:32.2]} 15.
Ne4 {[%clk 0:02:32.8]} 15... Nxe4 {[%clk 0:01:24.3]} 16. Bxe4 {[%clk 0:02:32.1]}
16... Qf6 {[%clk 0:01:21]} 17. Bd5 {[%clk 0:02:26.4]} 17... Bg4 {[%clk
0:01:11.2]} 18. d3 {[%clk 0:02:25.7]} 18... Rbd8 {[%clk 0:01:11.2]} 19. Qd2
{[%clk 0:02:22.7]} 19... Bc7 {[%clk 0:01:11.6]} 20. Be4 {[%clk 0:02:23.1]} 20...
c4 {[%clk 0:00:30.4]} 21. Bc3 {[%clk 0:02:21.5]} 21... Nc6 {[%clk 0:00:15.3]}
22. bxc4 {[%clk 0:02:19.7]} 22... Nd4 {[%clk 0:00:11.2]} 23. Bxd4 {[%clk
0:02:19.7]} 23... exd4 {[%clk 0:00:12.4]} 24. h3 {[%clk 0:02:19.2]} 24... Bh5
{[%clk 0:00:06.8]} 25. Re2 {[%clk 0:02:18.4]} 25... Qd6 {[%clk 0:00:06.2]} 26.
g3 {[%clk 0:02:15]} 26... Rxe4 {[%clk 0:00:06.3]} 27. Rxe4 {[%clk 0:02:16]}
27... Bxf3 {[%clk 0:00:07.4]} 28. Rf4 {[%clk 0:02:16.3]} 28... Ba8 {[%clk
0:00:05.5]} 29. Re1 {[%clk 0:02:17.2]} 29... Qc6 {[%clk 0:00:05.3]} 30. Rfe4
{[%clk 0:02:18.4]} 30... Qd7 {[%clk 0:00:03.8]} 31. Qe2 {[%clk 0:02:11.3]} 31...
Bxe4 {[%clk 0:00:04.1]} 32. Qxe4 {[%clk 0:02:12.7]} 32... Ba5 {[%clk 0:00:05.5]}
33. Re2 {[%clk 0:02:10.7]} 33... Bc3 {[%clk 0:00:06.1]} 34. Kg2 {[%clk
0:02:10.7]} 34... a5 {[%clk 0:00:03.9]} 35. Qf3 {[%clk 0:02:07.2]} 35... a4
{[%clk 0:00:03.7]} 36. Re5 {[%clk 0:02:05.2]} 36... a3 {[%clk 0:00:04.9]} 37.
Qe4 {[%clk 0:02:02.1]} 37... Qd6 {[%clk 0:00:03.1]} 38. Rd5 {[%clk 0:01:57.1]}
38... Qc7 {[%clk 0:00:03.4]} 39. Rb5 {[%clk 0:01:58.2]} 39... Qd7 {[%clk
0:00:03.3]} 40. Rb7 {[%clk 0:01:56.8]} 40... Qe6 {[%clk 0:00:03.4]} 41. Qf3
{[%clk 0:01:57.7]} 41... Re8 {[%clk 0:00:03]} 42. Ra7 {[%clk 0:01:55.4]} 42...
Re7 {[%clk 0:00:03.4]} 43. Rxa3 {[%clk 0:01:54.7]} 43... Re8 {[%clk 0:00:03.1]}
44. Ra7 {[%clk 0:01:54.8]} 44... Re7 {[%clk 0:00:04.1]} 45. Ra8+ {[%clk
0:01:53.7]} 45... Re8 {[%clk 0:00:05.4]} 46. Ra7 {[%clk 0:01:38.3]} 46... Re7
{[%clk 0:00:06]} 47. Ra3 {[%clk 0:01:39.3]} 47... Re8 {[%clk 0:00:03.9]} 48. Rb3
{[%clk 0:01:40]} 48... Qd6 {[%clk 0:00:03.4]} 49. Rb7 {[%clk 0:01:40.6]} 49...
Re7 {[%clk 0:00:03.7]} 50. Rb5 {[%clk 0:01:41.7]} 50... Re8 {[%clk 0:00:03.8]}
51. a4 {[%clk 0:01:42.4]} 51... Rc8 {[%clk 0:00:03.7]} 52. a5 {[%clk 0:01:39.2]}
52... Qc6 {[%clk 0:00:03.7]} 53. Rd5 {[%clk 0:01:33.3]} 53... Qa8 {[%clk
0:00:04.6]} 54. Rd7 {[%clk 0:01:18.9]} 54... Qxf3+ {[%clk 0:00:04.5]} 55. Kxf3
{[%clk 0:01:20.8]} 55... Ra8 {[%clk 0:00:04.9]} 56. c5 {[%clk 0:01:22]} 56...
Rxa5 {[%clk 0:00:04.4]} 57. c6 {[%clk 0:01:23.1]} 57... Rc5 {[%clk 0:00:06]} 58.
c7 {[%clk 0:01:24.4]} 58... Kh7 {[%clk 0:00:06.8]} 59. Rxf7 {[%clk 0:01:25.6]}
59... Kg6 {[%clk 0:00:07.9]} 60. Rd7 {[%clk 0:01:26.8]} 60... Ba5 {[%clk
0:00:08.3]} 61. Rxd4 {[%clk 0:01:24.1]} 61... Rxc2 {[%clk 0:00:08.8]} 62. Rd6+
{[%clk 0:01:24.7]} 62... Kh7 {[%clk 0:00:08.3]} 63. Rd5 {[%clk 0:01:25.3]} 63...
Bxc7 {[%clk 0:00:08.3]} 64. d4 {[%clk 0:01:26.6]} 64... Kg6 {[%clk 0:00:04.5]}
65. h4 {[%clk 0:01:27.4]} 65... Kf6 {[%clk 0:00:05.6]} 66. Ke3 {[%clk
0:01:23.5]} 66... Ke6 {[%clk 0:00:06.1]} 67. Rb5 {[%clk 0:01:23.4]} 67... Bd6
{[%clk 0:00:06.4]} 68. Rb7 {[%clk 0:01:24.1]} 68... Kf6 {[%clk 0:00:07.6]} 69.
Rb6 {[%clk 0:01:22.7]} 69... Ke6 {[%clk 0:00:08.5]} 70. Rb7 {[%clk 0:01:21.8]}
70... Kf6 {[%clk 0:00:09.1]} 71. Rd7 {[%clk 0:01:22.9]} 71... Ba3 {[%clk
0:00:07.7]} 72. Kf3 {[%clk 0:01:09.3]} 72... Rd2 {[%clk 0:00:07.4]} 73. Ke3
{[%clk 0:00:59.6]} 73... Bc1 {[%clk 0:00:08.4]} 74. Kf3 {[%clk 0:01:00.9]} 74...
Bb2 {[%clk 0:00:07.8]} 75. Ke3 {[%clk 0:01:02]} 75... Bc1 {[%clk 0:00:08.8]} 76.
Kf3 {[%clk 0:01:03.1]} 76... Bb2 {[%clk 0:00:09.9]} 77. Ke3 {[%clk 0:01:01.4]}
77... Bc1 {[%clk 0:00:10.6]} 78. Kf3 {[%clk 0:01:00.9]} 1/2-1/2

[Event "*** Titled Tuesday Blitz"]
[Site "Chess.com"]
[Date "2018.09.04"]
[Round "5"]
[White "Korchmar_Vasiliy"]
[Black "JonahWillow"]
[Result "0-1"]
[WhiteElo "2638"]
[BlackElo "2751"]
[TimeControl "180+2"]
[EndTime "14:43:16 PDT"]
[Termination "JonahWillow won by resignation"]

1. d4 {[%clk 0:03:00.8]} 1... Nf6 {[%clk 0:03:00.8]} 2. Nf3 {[%clk 0:03:00.9]}
2... e6 {[%clk 0:03:02]} 3. Bf4 {[%clk 0:03:01.6]} 3... c5 {[%clk 0:03:02.2]} 4.
e3 {[%clk 0:03:02.9]} 4... cxd4 {[%clk 0:03:00.2]} 5. exd4 {[%clk 0:03:03.9]}
5... Be7 {[%clk 0:02:56.6]} 6. Nbd2 {[%clk 0:03:01.3]} 6... O-O {[%clk
0:02:57.4]} 7. h3 {[%clk 0:03:01.9]} 7... b6 {[%clk 0:02:56.5]} 8. Bd3 {[%clk
0:03:03]} 8... Bb7 {[%clk 0:02:57.6]} 9. O-O {[%clk 0:03:03.5]} 9... d6 {[%clk
0:02:57.5]} 10. a4 {[%clk 0:03:00.2]} 10... a6 {[%clk 0:02:52.5]} 11. Bh2 {[%clk
0:02:44.6]} 11... Re8 {[%clk 0:02:51.8]} 12. Qe2 {[%clk 0:02:36.8]} 12... Nbd7
{[%clk 0:02:47.1]} 13. a5 {[%clk 0:02:28.2]} 13... bxa5 {[%clk 0:02:16.3]} 14.
Nc4 {[%clk 0:02:26.6]} 14... e5 {[%clk 0:02:17.5]} 15. dxe5 {[%clk 0:02:10.4]}
15... dxe5 {[%clk 0:02:09.9]} 16. Nfxe5 {[%clk 0:02:11.6]} 16... Nxe5 {[%clk
0:02:09.5]} 17. Bxe5 {[%clk 0:02:13.5]} 17... Qd5 {[%clk 0:02:07.6]} 18. f3
{[%clk 0:01:55]} 18... Nd7 {[%clk 0:02:00.2]} 19. Kh1 {[%clk 0:01:31.3]} 19...
Bd8 {[%clk 0:01:42.1]} 20. f4 {[%clk 0:01:18.3]} 20... Bc7 {[%clk 0:01:09.2]}
21. Rad1 {[%clk 0:01:05.5]} 21... Qc6 {[%clk 0:01:06.2]} 22. Qf2 {[%clk
0:00:56.2]} 22... Nxe5 {[%clk 0:01:02.7]} 23. Nxe5 {[%clk 0:00:51.3]} 23... Bxe5
{[%clk 0:01:03.7]} 24. fxe5 {[%clk 0:00:51.9]} 24... Re7 {[%clk 0:00:57.5]} 25.
b3 {[%clk 0:00:43.5]} 25... Rae8 {[%clk 0:00:47.3]} 26. Bc4 {[%clk 0:00:43.9]}
26... Qc7 {[%clk 0:00:48.3]} 27. Rd6 {[%clk 0:00:34.9]} 27... Bc8 {[%clk
0:00:45.2]} 28. Qd4 {[%clk 0:00:35.9]} 28... Be6 {[%clk 0:00:40.8]} 29. Bd3
{[%clk 0:00:34.5]} 29... g6 {[%clk 0:00:35.2]} 30. Qf4 {[%clk 0:00:30.2]} 30...
Qc8 {[%clk 0:00:30.8]} 31. h4 {[%clk 0:00:27.6]} 31... Rd8 {[%clk 0:00:31.2]}
32. h5 {[%clk 0:00:27.1]} 32... Rxd6 {[%clk 0:00:30.8]} 33. exd6 {[%clk
0:00:29]} 33... Rd7 {[%clk 0:00:32.5]} 34. Re1 {[%clk 0:00:16.2]} 34... Qf8
{[%clk 0:00:24.5]} 35. hxg6 {[%clk 0:00:14.5]} 35... hxg6 {[%clk 0:00:25.3]} 36.
Bxg6 {[%clk 0:00:15.6]} 36... Rxd6 {[%clk 0:00:24.3]} 37. Be4 {[%clk 0:00:13.7]}
37... Qd8 {[%clk 0:00:22.8]} 38. Qg3+ {[%clk 0:00:14.1]} 38... Kf8 {[%clk
0:00:22.8]} 39. Qf4 {[%clk 0:00:11.9]} 39... Kg8 {[%clk 0:00:24.1]} 40. Bd3
{[%clk 0:00:11.9]} 40... Rd4 {[%clk 0:00:23.3]} 41. Qe3 {[%clk 0:00:07.8]} 41...
Bxb3 {[%clk 0:00:19.9]} 42. Qg3+ {[%clk 0:00:04.6]} 42... Kf8 {[%clk 0:00:19.3]}
43. Bh7 {[%clk 0:00:05.1]} 43... Qh4+ {[%clk 0:00:18.3]} 44. Qxh4 {[%clk
0:00:06.5]} 44... Rxh4+ {[%clk 0:00:20.2]} 45. Kg1 {[%clk 0:00:08.1]} 45... Rxh7
{[%clk 0:00:17.6]} 46. cxb3 {[%clk 0:00:10]} 46... Rh5 {[%clk 0:00:19.5]} 47.
Rc1 {[%clk 0:00:10.4]} 47... Rb5 {[%clk 0:00:20.2]} 48. Rc6 {[%clk 0:00:11.5]}
48... Rxb3 {[%clk 0:00:20.8]} 49. Rxa6 {[%clk 0:00:13]} 49... Rb5 {[%clk
0:00:21.5]} 50. Ra7 {[%clk 0:00:13]} 50... Kg7 {[%clk 0:00:22.5]} 51. Kf2 {[%clk
0:00:12.8]} 51... Kg6 {[%clk 0:00:24]} 52. Kf3 {[%clk 0:00:13.2]} 52... Rb3+
{[%clk 0:00:23.2]} 53. Kf4 {[%clk 0:00:13.8]} 53... Ra3 {[%clk 0:00:23.4]} 54.
g4 {[%clk 0:00:14.2]} 54... f6 {[%clk 0:00:23.2]} 55. Ra8 {[%clk 0:00:12.9]}
55... Ra1 {[%clk 0:00:24.1]} 56. Rg8+ {[%clk 0:00:12.9]} 56... Kf7 {[%clk
0:00:25.3]} 57. Ra8 {[%clk 0:00:14]} 57... a4 {[%clk 0:00:21.6]} 58. Kf5 {[%clk
0:00:15.1]} 58... Rf1+ {[%clk 0:00:22.5]} 59. Ke4 {[%clk 0:00:16.3]} 59... Rg1
{[%clk 0:00:24]} 60. Kf5 {[%clk 0:00:16.4]} 60... Rf1+ {[%clk 0:00:24.3]} 61.
Ke4 {[%clk 0:00:17.7]} 61... Ra1 {[%clk 0:00:15.2]} 62. Kf5 {[%clk 0:00:17.6]}
62... Rf1+ {[%clk 0:00:11.5]} 63. Ke4 {[%clk 0:00:18.7]} 63... Kg6 {[%clk
0:00:12.6]} 64. Rg8+ {[%clk 0:00:13.2]} 64... Kf7 {[%clk 0:00:13.8]} 65. Ra8
{[%clk 0:00:13.8]} 65... Kg6 {[%clk 0:00:15.4]} 66. Rg8+ {[%clk 0:00:14.8]}
66... Kh6 {[%clk 0:00:16.9]} 67. Ra8 {[%clk 0:00:10.3]} 67... Kg5 {[%clk
0:00:16.3]} 68. Rxa4 {[%clk 0:00:07.7]} 68... Rf4+ {[%clk 0:00:15.8]} 0-1

[Event "*** Titled Tuesday Blitz"]
[Site "Chess.com"]
[Date "2018.09.04"]
[Round "5"]
[White "AndrewDGreen"]
[Black "patrisiii123"]
[Result "1-0"]
[WhiteElo "2215"]
[BlackElo "2303"]
[TimeControl "180+2"]
[EndTime "14:43:21 PDT"]
[Termination "AndrewDGreen won by resignation"]

1. d4 {[%clk 0:02:05.4]} 1... d5 {[%clk 0:02:59.7]} 2. Bf4 {[%clk 0:02:05.5]}
2... c5 {[%clk 0:02:40.5]} 3. e3 {[%clk 0:02:05.6]} 3... Nf6 {[%clk 0:02:36.5]}
4. Nc3 {[%clk 0:02:05.1]} 4... e6 {[%clk 0:02:32.4]} 5. Nb5 {[%clk 0:02:05.2]}
5... Na6 {[%clk 0:02:21.6]} 6. c3 {[%clk 0:02:06.5]} 6... Be7 {[%clk 0:02:10.7]}
7. Nf3 {[%clk 0:01:56.3]} 7... O-O {[%clk 0:02:07.8]} 8. Ne5 {[%clk 0:01:56.9]}
8... Ne4 {[%clk 0:02:00.7]} 9. Bd3 {[%clk 0:01:49.4]} 9... f6 {[%clk 0:01:53.5]}
10. Nf3 {[%clk 0:01:31.9]} 10... Bd7 {[%clk 0:01:49.2]} 11. a4 {[%clk
0:01:31.1]} 11... Qe8 {[%clk 0:01:29.7]} 12. O-O {[%clk 0:01:12.6]} 12... g5
{[%clk 0:01:21]} 13. Bg3 {[%clk 0:01:08.5]} 13... Bc6 {[%clk 0:00:53.7]} 14.
Bxe4 {[%clk 0:00:58.6]} 14... dxe4 {[%clk 0:00:51.9]} 15. Nd2 {[%clk 0:00:59.7]}
15... f5 {[%clk 0:00:43.5]} 16. Be5 {[%clk 0:00:52.4]} 16... Bxb5 {[%clk
0:00:40.4]} 17. axb5 {[%clk 0:00:54.3]} 17... Qxb5 {[%clk 0:00:41.6]} 18. Qc2
{[%clk 0:00:50.9]} 18... cxd4 {[%clk 0:00:37.5]} 19. cxd4 {[%clk 0:00:52]} 19...
Nb4 {[%clk 0:00:34]} 20. Qb3 {[%clk 0:00:52.5]} 20... Qd5 {[%clk 0:00:26]} 21.
Rfc1 {[%clk 0:00:42.6]} 21... Rac8 {[%clk 0:00:18.7]} 22. Nc4 {[%clk 0:00:39.6]}
22... Nd3 {[%clk 0:00:11.6]} 23. Rc3 {[%clk 0:00:31.4]} 23... Nxe5 {[%clk
0:00:09.3]} 24. Nxe5 {[%clk 0:00:26]} 24... b6 {[%clk 0:00:08.2]} 25. Qc2 {[%clk
0:00:13.4]} 25... Rxc3 {[%clk 0:00:06.8]} 26. bxc3 {[%clk 0:00:14]} 26... a5
{[%clk 0:00:07.2]} 27. c4 {[%clk 0:00:15.3]} 27... Qd6 {[%clk 0:00:07.5]} 28.
Rb1 {[%clk 0:00:13.7]} 28... Rc8 {[%clk 0:00:08]} 29. Qa4 {[%clk 0:00:11.3]}
29... Bf6 {[%clk 0:00:08.6]} 30. Nd7 {[%clk 0:00:09]} 30... Bd8 {[%clk
0:00:06.9]} 31. g3 {[%clk 0:00:08]} 31... Qc6 {[%clk 0:00:06.8]} 32. Qxc6 {[%clk
0:00:05.6]} 32... Rxc6 {[%clk 0:00:08.7]} 33. Ne5 {[%clk 0:00:07.1]} 33... Rd6
{[%clk 0:00:08.3]} 34. Kf1 {[%clk 0:00:05.9]} 34... Bf6 {[%clk 0:00:09]} 35. c5
{[%clk 0:00:04.2]} 35... bxc5 {[%clk 0:00:09]} 36. Rb8+ {[%clk 0:00:04.2]} 36...
Kg7 {[%clk 0:00:09.1]} 37. Rb7+ {[%clk 0:00:05.1]} 37... Kf8 {[%clk 0:00:08.9]}
38. Nd7+ {[%clk 0:00:06.1]} 38... Ke7 {[%clk 0:00:09.6]} 39. Nxc5+ {[%clk
0:00:05.4]} 39... Ke8 {[%clk 0:00:08.8]} 40. Ra7 {[%clk 0:00:05.6]} 40... Rb6
{[%clk 0:00:08]} 41. Rxa5 {[%clk 0:00:05.4]} 41... e5 {[%clk 0:00:09]} 42. dxe5
{[%clk 0:00:04.3]} 42... Bxe5 {[%clk 0:00:10.9]} 43. Nxe4 {[%clk 0:00:04]} 43...
fxe4 {[%clk 0:00:08.1]} 44. Rxe5+ {[%clk 0:00:04.1]} 44... Kf7 {[%clk 0:00:10]}
45. Rxe4 {[%clk 0:00:05.5]} 45... Kf6 {[%clk 0:00:11.4]} 46. Kg2 {[%clk
0:00:05.6]} 46... h5 {[%clk 0:00:12.6]} 47. h3 {[%clk 0:00:06.6]} 47... Kf5
{[%clk 0:00:13.8]} 48. Rd4 {[%clk 0:00:07.3]} 48... Re6 {[%clk 0:00:14.5]} 49.
g4+ {[%clk 0:00:08.7]} 49... hxg4 {[%clk 0:00:13.8]} 50. hxg4+ {[%clk
0:00:10.6]} 50... Ke5 {[%clk 0:00:14.3]} 51. Kg3 {[%clk 0:00:11.5]} 51... Ra6
{[%clk 0:00:14.3]} 52. Rb4 {[%clk 0:00:12.3]} 52... Ra2 {[%clk 0:00:14.2]} 53.
Rb5+ {[%clk 0:00:12.9]} 53... Kf6 {[%clk 0:00:15.6]} 54. Rf5+ {[%clk 0:00:14]}
54... Kg6 {[%clk 0:00:16.5]} 55. f4 {[%clk 0:00:13.7]} 55... Ra3 {[%clk
0:00:14.6]} 56. Rxg5+ {[%clk 0:00:14.2]} 56... Kf6 {[%clk 0:00:15.7]} 57. Re5
{[%clk 0:00:15.3]} 57... Ra4 {[%clk 0:00:16.2]} 58. Kf3 {[%clk 0:00:16.9]} 58...
Ra1 {[%clk 0:00:16.8]} 59. g5+ {[%clk 0:00:18]} 59... Kg6 {[%clk 0:00:18]} 60.
Re6+ {[%clk 0:00:18.1]} 60... Kf7 {[%clk 0:00:19.4]} 61. Rf6+ {[%clk 0:00:19.2]}
61... Kg7 {[%clk 0:00:20.8]} 62. e4 {[%clk 0:00:19.6]} 62... Rg1 {[%clk
0:00:20.9]} 63. e5 {[%clk 0:00:20.4]} 63... Re1 {[%clk 0:00:21.3]} 64. e6 {[%clk
0:00:21.4]} 64... Rf1+ {[%clk 0:00:19.2]} 65. Kg4 {[%clk 0:00:22.7]} 65... Re1
{[%clk 0:00:20]} 66. Kf5 {[%clk 0:00:23.4]} 66... Rf1 {[%clk 0:00:20.5]} 67.
Rf7+ {[%clk 0:00:24.4]} 67... Kg8 {[%clk 0:00:21.7]} 68. Ra7 {[%clk 0:00:24.3]}
68... Re1 {[%clk 0:00:21.8]} 69. Kf6 {[%clk 0:00:23.7]} 69... Rf1 {[%clk
0:00:20.2]} 70. f5 {[%clk 0:00:24.6]} 70... Rd1 {[%clk 0:00:18.4]} 71. Kg6
{[%clk 0:00:24.6]} 71... Kf8 {[%clk 0:00:18.9]} 72. f6 {[%clk 0:00:22.7]} 72...
Ke8 {[%clk 0:00:19.2]} 73. Ra8+ {[%clk 0:00:22.5]} 73... Rd8 {[%clk 0:00:20.6]}
74. Rxd8+ {[%clk 0:00:23.4]} 74... Kxd8 {[%clk 0:00:22.5]} 75. Kf7 {[%clk
0:00:23.1]} 75... Kc7 {[%clk 0:00:23.5]} 76. e7 {[%clk 0:00:24.3]} 76... Kd6
{[%clk 0:00:25.3]} 77. e8=Q {[%clk 0:00:25.1]} 77... Kd5 {[%clk 0:00:27.2]} 1-0

[Event "*** Titled Tuesday Blitz"]
[Site "Chess.com"]
[Date "2018.09.04"]
[Round "5"]
[White "CrushingKings"]
[Black "Zarikovs1999"]
[Result "0-1"]
[WhiteElo "1817"]
[BlackElo "2185"]
[TimeControl "180+2"]
[EndTime "14:43:25 PDT"]
[Termination "Zarikovs1999 won by resignation"]

1. e4 {[%clk 0:03:01.9]} 1... c5 {[%clk 0:03:00.4]} 2. Nf3 {[%clk 0:03:02.5]}
2... d6 {[%clk 0:03:01.8]} 3. d4 {[%clk 0:03:02.9]} 3... cxd4 {[%clk 0:03:03.7]}
4. Nxd4 {[%clk 0:03:04.3]} 4... Nf6 {[%clk 0:03:04.8]} 5. Nc3 {[%clk 0:03:05.4]}
5... a6 {[%clk 0:03:06.2]} 6. f3 {[%clk 0:03:05.6]} 6... e5 {[%clk 0:03:07.1]}
7. Be3 {[%clk 0:03:07.1]} 7... exd4 {[%clk 0:03:07.7]} 8. Bxd4 {[%clk
0:03:08.2]} 8... Nc6 {[%clk 0:03:08.7]} 9. Be3 {[%clk 0:03:08.7]} 9... Be7
{[%clk 0:03:08.4]} 10. Qd2 {[%clk 0:03:08.2]} 10... Be6 {[%clk 0:03:08.2]} 11.
O-O-O {[%clk 0:03:01.1]} 11... O-O {[%clk 0:03:04.5]} 12. g4 {[%clk 0:03:02.5]}
12... Ne5 {[%clk 0:03:05.6]} 13. Be2 {[%clk 0:02:53.8]} 13... Nc4 {[%clk
0:03:06]} 14. Bxc4 {[%clk 0:02:53.2]} 14... Bxc4 {[%clk 0:03:07.9]} 15. g5
{[%clk 0:02:54.1]} 15... Nh5 {[%clk 0:03:06.5]} 16. f4 {[%clk 0:02:45.8]} 16...
b5 {[%clk 0:03:01.2]} 17. b3 {[%clk 0:02:29.7]} 17... b4 {[%clk 0:02:55.6]} 18.
Na4 {[%clk 0:02:25.4]} 18... Bb5 {[%clk 0:02:48.3]} 19. Nb6 {[%clk 0:02:26.6]}
19... Rb8 {[%clk 0:02:38.4]} 20. Nd5 {[%clk 0:02:28]} 20... Bc6 {[%clk
0:02:32.3]} 21. Qe2 {[%clk 0:02:01.7]} 21... Bxd5 {[%clk 0:02:22.6]} 22. Rxd5
{[%clk 0:01:56.8]} 22... g6 {[%clk 0:02:23.1]} 23. Rhd1 {[%clk 0:01:57.4]} 23...
Qc7 {[%clk 0:02:12.9]} 24. f5 {[%clk 0:01:57.5]} 24... Rfc8 {[%clk 0:01:58.5]}
25. Kb1 {[%clk 0:01:19.1]} 25... Rb5 {[%clk 0:01:44.4]} 26. R5d2 {[%clk
0:01:10.3]} 26... Re5 {[%clk 0:01:13.6]} 27. Rd4 {[%clk 0:00:31.6]} 27... a5
{[%clk 0:00:55.5]} 28. Rc4 {[%clk 0:00:11.6]} 28... Qb7 {[%clk 0:00:49.8]} 29.
Bd4 {[%clk 0:00:12]} 29... Rxc4 {[%clk 0:00:43.6]} 30. bxc4 {[%clk 0:00:07.5]}
30... Qxe4 {[%clk 0:00:37.6]} 31. Qxe4 {[%clk 0:00:05.2]} 31... Rxe4 {[%clk
0:00:37.4]} 32. f6 {[%clk 0:00:06.9]} 32... Bf8 {[%clk 0:00:36.1]} 33. Kb2
{[%clk 0:00:07.5]} 33... h6 {[%clk 0:00:33.1]} 34. Kb3 {[%clk 0:00:03.6]} 34...
hxg5 {[%clk 0:00:32.8]} 35. Ka4 {[%clk 0:00:05.1]} 35... Re6 {[%clk 0:00:17.9]}
36. Kxa5 {[%clk 0:00:06.3]} 36... Nxf6 {[%clk 0:00:18.6]} 37. Kxb4 {[%clk
0:00:07.7]} 37... Nd7 {[%clk 0:00:19.2]} 38. a4 {[%clk 0:00:08.3]} 38... f5
{[%clk 0:00:12.6]} 39. a5 {[%clk 0:00:09]} 39... Nb8 {[%clk 0:00:13.7]} 40. Kb5
{[%clk 0:00:10]} 40... Re7 {[%clk 0:00:12.9]} 41. a6 {[%clk 0:00:10.5]} 41...
Nxa6 {[%clk 0:00:12.7]} 42. Kxa6 {[%clk 0:00:11.5]} 42... f4 {[%clk 0:00:13.5]}
43. Rg1 {[%clk 0:00:09.9]} 43... Re4 {[%clk 0:00:12.6]} 44. Bf6 {[%clk
0:00:09.2]} 44... Rxc4 {[%clk 0:00:12]} 45. Bxg5 {[%clk 0:00:10.7]} 45... Bg7
{[%clk 0:00:11.1]} 46. Rf1 {[%clk 0:00:10.3]} 46... Be5 {[%clk 0:00:12.1]} 47.
Kb5 {[%clk 0:00:10.4]} 47... Rxc2 {[%clk 0:00:13]} 48. Bxf4 {[%clk 0:00:11.8]}
48... Bxf4 {[%clk 0:00:14.3]} 49. Rxf4 {[%clk 0:00:12.2]} 49... Rxh2 {[%clk
0:00:15.5]} 50. Kc6 {[%clk 0:00:13.2]} 50... Rd2 {[%clk 0:00:15.7]} 51. Kd7
{[%clk 0:00:11.4]} 51... Kg7 {[%clk 0:00:16.1]} 52. Ke6 {[%clk 0:00:11.9]} 52...
g5 {[%clk 0:00:17.1]} 53. Rf7+ {[%clk 0:00:12.3]} 53... Kg6 {[%clk 0:00:17.6]}
54. Rf6+ {[%clk 0:00:13.6]} 54... Kh5 {[%clk 0:00:18.8]} 55. Rf8 {[%clk
0:00:14.3]} 55... Kg4 {[%clk 0:00:17.8]} 56. Rh8 {[%clk 0:00:14.8]} 56... Kg3
{[%clk 0:00:18.6]} 57. Kf5 {[%clk 0:00:14.8]} 57... g4 {[%clk 0:00:15.3]} 58.
Rg8 {[%clk 0:00:16.3]} 58... Rf2+ {[%clk 0:00:16]} 59. Ke4 {[%clk 0:00:17.2]}
59... Kh3 {[%clk 0:00:13.5]} 60. Ke3 {[%clk 0:00:15.9]} 60... g3 {[%clk
0:00:14.9]} 61. Rg6 {[%clk 0:00:16.5]} 61... d5 {[%clk 0:00:10.1]} 62. Rg5
{[%clk 0:00:17.7]} 62... Ra2 {[%clk 0:00:07.5]} 63. Rh5+ {[%clk 0:00:13.4]}
63... Kg4 {[%clk 0:00:06.4]} 64. Rxd5 {[%clk 0:00:14.7]} 64... g2 {[%clk
0:00:07.1]} 65. Rd1 {[%clk 0:00:15.1]} 65... Kg3 {[%clk 0:00:08.4]} 66. Ke4
{[%clk 0:00:13.4]} 66... Rf2 {[%clk 0:00:07.6]} 67. Ke3 {[%clk 0:00:12.7]} 67...
Rf1 {[%clk 0:00:08.4]} 0-1